[Event "November 21 Late 2023"]
[Site "https://www.chess.com"]
[Date "2023.11.21"]
[Round "6"]
[White "Kochiev, Ivan"]
[Black "Akhayan, Ruben"]
[Result "1-0"]
[Board "95"]
[TimeControl "180+1"]
[WhiteFideId "2917890"]
[BlackFideId "204439"]
[WhiteElo "2285"]
[BlackElo "2141"]
[WhiteTeam "BUL"]
[BlackTeam "BEL"]
[WhiteClock "0:00:05"]
[BlackClock "0:00:00"]

1. e4 {[%clk 0:03:00]}  e5 {[%clk 0:02:59]} 2. Nf3 {[%clk 0:02:59]}  Nc6 {[%clk 0:03:00]} 3. d4 {[%clk 0:02:55]}  exd4 {[%clk 0:02:59]} 4. Bc4 {[%clk 0:02:55]}  Nf6 {[%clk 0:03:00]} 5. O-O {[%clk 0:02:55]}  Nxe4 {[%clk 0:02:59]} 6. Nc3 {[%clk 0:02:55]}  Nxc3 {[%clk 0:02:50]} 7. bxc3 {[%clk 0:02:52]}  d5 {[%clk 0:02:49]} 8. Bb5 {[%clk 0:02:46]}  Be7 {[%clk 0:02:49]} 9. Nxd4 {[%clk 0:01:55]}  Bd7 {[%clk 0:02:49]} 10. Bd3 {[%clk 0:01:55]}  Nxd4 {[%clk 0:02:41]} 11. cxd4 {[%clk 0:01:55]}  O-O {[%clk 0:02:40]} 12. Qh5 {[%clk 0:01:54]}  g6 {[%clk 0:02:36]} 13. Qxd5 {[%clk 0:01:53]}  Bc6 {[%clk 0:02:34]} 14. Qxd8 {[%clk 0:01:49]}  Raxd8 {[%clk 0:02:34]} 15. c3 {[%clk 0:01:49]}  Bd6 {[%clk 0:02:30]} 16. Re1 {[%clk 0:01:46]}  Rfe8 {[%clk 0:02:29]} 17. Be3 {[%clk 0:01:36]}  Kg7 {[%clk 0:02:21]} 18. Rab1 {[%clk 0:01:31]}  b6 {[%clk 0:02:20]} 19. f3 {[%clk 0:01:24]}  Re7 {[%clk 0:02:15]} 20. Re2 {[%clk 0:01:08]}  Rde8 {[%clk 0:02:15]} 21. Rbe1 {[%clk 0:01:08]}  h6 {[%clk 0:02:07]} 22. c4 {[%clk 0:01:03]}  Bb4 {[%clk 0:02:05]} 23. Kf2 {[%clk 0:00:45]}  Bxe1+ {[%clk 0:02:03]} 24. Rxe1 {[%clk 0:00:46]}  Bd7 {[%clk 0:01:58]} 25. d5 {[%clk 0:00:33]}  Kh7 {[%clk 0:01:49]} 26. h4 {[%clk 0:00:31]}  Bf5 {[%clk 0:01:48]} 27. Bf1 {[%clk 0:00:25]}  h5 {[%clk 0:01:45]} 28. Bd2 {[%clk 0:00:17]}  Rxe1 {[%clk 0:01:44]} 29. Bxe1 {[%clk 0:00:18]}  Bb1 {[%clk 0:01:34]} 30. a3 {[%clk 0:00:16]}  Ba2 {[%clk 0:01:34]} 31. Bd3 {[%clk 0:00:15]}  a6 {[%clk 0:01:19]} 32. a4 {[%clk 0:00:11]}  Bb3 {[%clk 0:01:18]} 33. a5 {[%clk 0:00:11]}  bxa5 {[%clk 0:01:16]} 34. Bxa5 {[%clk 0:00:11]}  Re7 {[%clk 0:01:01]} 35. Bb4 {[%clk 0:00:11]}  Rd7 {[%clk 0:00:59]} 36. Ke3 {[%clk 0:00:09]}  Ba4 {[%clk 0:00:54]} 37. Kd4 {[%clk 0:00:07]}  c6 {[%clk 0:00:51]} 38. d6 {[%clk 0:00:04]}  Rb7 {[%clk 0:00:33]} 39. Kc5 {[%clk 0:00:04]}  Kg8 {[%clk 0:00:28]} 40. Ba5 {[%clk 0:00:03]}  Kf8 {[%clk 0:00:17]} 41. Be4 {[%clk 0:00:02]}  Ke8 {[%clk 0:00:10]} 42. Bxc6+ {[%clk 0:00:03]}  Bxc6 {[%clk 0:00:10]} 43. Kxc6 {[%clk 0:00:04]}  Rd7 {[%clk 0:00:09]} 44. Bc7 {[%clk 0:00:04]}  f6 {[%clk 0:00:08]} 45. c5 {[%clk 0:00:04]}  g5 {[%clk 0:00:09]} 46. hxg5 {[%clk 0:00:04]}  fxg5 {[%clk 0:00:09]} 47. Kd5 {[%clk 0:00:04]}  Rg7 {[%clk 0:00:05]} 48. c6 {[%clk 0:00:04]}  g4 {[%clk 0:00:06]} 49. Ke6 {[%clk 0:00:04]}  Rg6+ {[%clk 0:00:02]} 50. Kf5 {[%clk 0:00:04]}  Rg7 {[%clk 0:00:02]} 51. fxg4 {[%clk 0:00:04]}  hxg4 {[%clk 0:00:00]} 52. g3 {[%clk 0:00:05]} 1-0

[Event "November 21 Late 2023"]
[Site "https://www.chess.com"]
[Date "2023.11.21"]
[Round "6"]
[White "Toniutti, Ezio"]
[Black "Nita, Lucian"]
[Result "0-1"]
[Board "96"]
[TimeControl "180+1"]
[WhiteFideId "113034"]
[BlackFideId "1206923"]
[WhiteElo "2215"]
[BlackElo "2066"]
[WhiteTeam "ARG"]
[BlackTeam "ROU"]
[WhiteClock "0:00:00"]
[BlackClock "0:00:16"]

1. d4 {[%clk 0:02:54]}  d6 {[%clk 0:03:00]} 2. c4 {[%clk 0:02:54]}  Nf6 {[%clk 0:03:01]} 3. Nc3 {[%clk 0:02:53]}  Nbd7 {[%clk 0:03:02]} 4. Nf3 {[%clk 0:02:52]}  e5 {[%clk 0:03:03]} 5. e4 {[%clk 0:02:53]}  Be7 {[%clk 0:03:03]} 6. Be2 {[%clk 0:02:53]}  O-O {[%clk 0:03:03]} 7. O-O {[%clk 0:02:53]}  c6 {[%clk 0:03:03]} 8. Be3 {[%clk 0:02:54]}  a6 {[%clk 0:03:03]} 9. Rc1 {[%clk 0:02:53]}  Ng4 {[%clk 0:03:03]} 10. Bd2 {[%clk 0:02:52]}  Re8 {[%clk 0:02:55]} 11. d5 {[%clk 0:02:42]}  c5 {[%clk 0:02:52]} 12. a3 {[%clk 0:02:42]}  Nf8 {[%clk 0:02:50]} 13. b4 {[%clk 0:02:42]}  cxb4 {[%clk 0:02:48]} 14. axb4 {[%clk 0:02:41]}  f5 {[%clk 0:02:40]} 15. Qb3 {[%clk 0:02:27]}  fxe4 {[%clk 0:02:39]} 16. Nxe4 {[%clk 0:02:26]}  Nf6 {[%clk 0:02:39]} 17. Ng3 {[%clk 0:02:19]}  Kh8 {[%clk 0:02:32]} 18. Ng5 {[%clk 0:02:16]}  Kg8 {[%clk 0:02:21]} 19. c5 {[%clk 0:02:10]}  h6 {[%clk 0:02:16]} 20. N5e4 {[%clk 0:02:02]}  N8h7 {[%clk 0:02:02]} 21. Rfd1 {[%clk 0:01:57]}  Nxe4 {[%clk 0:01:56]} 22. Nxe4 {[%clk 0:01:57]}  Bf5 {[%clk 0:01:56]} 23. Bd3 {[%clk 0:01:55]}  Bxe4 {[%clk 0:01:56]} 24. Bxe4 {[%clk 0:01:54]}  Nf6 {[%clk 0:01:56]} 25. Bf5 {[%clk 0:01:54]}  Kh8 {[%clk 0:01:49]} 26. Be3 {[%clk 0:01:51]}  Rf8 {[%clk 0:01:40]} 27. Be6 {[%clk 0:01:51]}  Ne8 {[%clk 0:01:33]} 28. Qd3 {[%clk 0:01:37]}  Bg5 {[%clk 0:01:31]} 29. c6 {[%clk 0:01:13]}  Bxe3 {[%clk 0:01:18]} 30. Qxe3 {[%clk 0:01:14]}  b6 {[%clk 0:01:13]} 31. Bd7 {[%clk 0:00:51]}  Nf6 {[%clk 0:01:08]} 32. Be6 {[%clk 0:00:48]}  Qc7 {[%clk 0:01:07]} 33. h3 {[%clk 0:00:46]}  Nh5 {[%clk 0:01:01]} 34. g3 {[%clk 0:00:41]}  g6 {[%clk 0:00:50]} 35. Qe4 {[%clk 0:00:36]}  Kg7 {[%clk 0:00:44]} 36. Ra1 {[%clk 0:00:35]}  Nf6 {[%clk 0:00:41]} 37. Qe2 {[%clk 0:00:34]}  b5 {[%clk 0:00:33]} 38. Qe3 {[%clk 0:00:30]}  Ne8 {[%clk 0:00:31]} 39. Ra5 {[%clk 0:00:28]}  Qa7 {[%clk 0:00:29]} 40. Qxa7+ {[%clk 0:00:16]}  Rxa7 {[%clk 0:00:30]} 41. Bd7 {[%clk 0:00:14]}  Nc7 {[%clk 0:00:30]} 42. Rd2 {[%clk 0:00:13]}  Raa8 {[%clk 0:00:29]} 43. Kg2 {[%clk 0:00:14]}  Rad8 {[%clk 0:00:28]} 44. Rda2 {[%clk 0:00:11]}  Ra8 {[%clk 0:00:27]} 45. Rd2 {[%clk 0:00:08]}  Rf7 {[%clk 0:00:26]} 46. Bg4 {[%clk 0:00:06]}  h5 {[%clk 0:00:25]} 47. Be2 {[%clk 0:00:06]}  Raf8 {[%clk 0:00:25]} 48. Bf1 {[%clk 0:00:04]}  Kf6 {[%clk 0:00:24]} 49. Raa2 {[%clk 0:00:05]}  Ke7 {[%clk 0:00:23]} 50. Rab2 {[%clk 0:00:02]}  Ra8 {[%clk 0:00:23]} 51. Ra2 {[%clk 0:00:02]}  Rf5 {[%clk 0:00:22]} 52. Be2 {[%clk 0:00:02]}  e4 {[%clk 0:00:22]} 53. Bd1 {[%clk 0:00:01]}  Rxd5 {[%clk 0:00:22]} 54. Re2 {[%clk 0:00:01]}  Re5 {[%clk 0:00:21]} 55. Bc2 {[%clk 0:00:01]}  d5 {[%clk 0:00:21]} 56. Bb3 {[%clk 0:00:01]}  Kd6 {[%clk 0:00:21]} 57. Rad2 {[%clk 0:00:02]}  Kxc6 {[%clk 0:00:20]} 58. Re3 {[%clk 0:00:02]}  Kd6 {[%clk 0:00:20]} 59. Rc3 {[%clk 0:00:03]}  Ne6 {[%clk 0:00:19]} 60. Rcc2 {[%clk 0:00:02]}  Ra7 {[%clk 0:00:18]} 61. Rc8 {[%clk 0:00:02]}  a5 {[%clk 0:00:17]} 62. Rd8+ {[%clk 0:00:02]}  Nxd8 {[%clk 0:00:16]} 63. bxa5 {[%clk 0:00:00]}  Ne6 {[%clk 0:00:16]} 0-1

[Event "November 21 Late 2023"]
[Site "https://www.chess.com"]
[Date "2023.11.21"]
[Round "6"]
[White "Maisuradze, Nino"]
[Black "Bilan, Danila"]
[Result "0-1"]
[Board "97"]
[TimeControl "180+1"]
[WhiteFideId "13601717"]
[BlackFideId "24161918"]
[WhiteElo "2108"]
[BlackElo "2146"]
[WhiteTeam "FRA"]
[BlackTeam "RUS"]
[WhiteClock "0:00:04"]
[BlackClock "0:00:04"]

1. Nf3 {[%clk 0:02:43]}  d5 {[%clk 0:03:00]} 2. g3 {[%clk 0:02:42]}  Nf6 {[%clk 0:03:00]} 3. Bg2 {[%clk 0:02:43]}  Bf5 {[%clk 0:03:01]} 4. O-O {[%clk 0:02:44]}  e6 {[%clk 0:03:01]} 5. d3 {[%clk 0:02:45]}  c6 {[%clk 0:02:57]} 6. Nbd2 {[%clk 0:02:46]}  Bc5 {[%clk 0:02:57]} 7. h3 {[%clk 0:02:45]}  Qc7 {[%clk 0:02:55]} 8. c3 {[%clk 0:02:44]}  Nbd7 {[%clk 0:02:53]} 9. d4 {[%clk 0:02:43]}  Bd6 {[%clk 0:02:52]} 10. Re1 {[%clk 0:02:38]}  Ne4 {[%clk 0:02:42]} 11. Nxe4 {[%clk 0:02:37]}  Bxe4 {[%clk 0:02:36]} 12. Nd2 {[%clk 0:02:34]}  f5 {[%clk 0:02:04]} 13. f3 {[%clk 0:01:47]}  Bxg3 {[%clk 0:02:03]} 14. Rf1 {[%clk 0:01:45]}  O-O {[%clk 0:01:54]} 15. fxe4 {[%clk 0:01:44]}  fxe4 {[%clk 0:01:42]} 16. Rxf8+ {[%clk 0:01:43]}  Rxf8 {[%clk 0:01:41]} 17. Nf1 {[%clk 0:01:43]}  Bf2+ {[%clk 0:01:27]} 18. Kh1 {[%clk 0:01:42]}  Nf6 {[%clk 0:01:22]} 19. Bg5 {[%clk 0:01:22]}  Nh5 {[%clk 0:01:14]} 20. e3 {[%clk 0:01:11]}  Qf7 {[%clk 0:01:01]} 21. Qg4 {[%clk 0:01:02]}  h6 {[%clk 0:00:47]} 22. Bh4 {[%clk 0:00:59]}  Nf6 {[%clk 0:00:39]} 23. Bxf6 {[%clk 0:00:58]}  Qxf6 {[%clk 0:00:40]} 24. Nh2 {[%clk 0:00:54]}  Bxe3 {[%clk 0:00:36]} 25. Rf1 {[%clk 0:00:54]}  Qe7 {[%clk 0:00:32]} 26. Rxf8+ {[%clk 0:00:53]}  Kxf8 {[%clk 0:00:33]} 27. Nf1 {[%clk 0:00:50]}  Bc1 {[%clk 0:00:30]} 28. Qe2 {[%clk 0:00:45]}  Qf6 {[%clk 0:00:27]} 29. Ne3 {[%clk 0:00:35]}  Ke7 {[%clk 0:00:24]} 30. Ng4 {[%clk 0:00:34]}  Qg5 {[%clk 0:00:18]} 31. Ne5 {[%clk 0:00:33]}  Bf4 {[%clk 0:00:15]} 32. Ng4 {[%clk 0:00:32]}  h5 {[%clk 0:00:11]} 33. Nf2 {[%clk 0:00:32]}  Qg3 {[%clk 0:00:11]} 34. Kg1 {[%clk 0:00:28]}  g6 {[%clk 0:00:05]} 35. Kf1 {[%clk 0:00:26]}  Kd6 {[%clk 0:00:04]} 36. a4 {[%clk 0:00:20]}  Kc7 {[%clk 0:00:04]} 37. Nxe4 {[%clk 0:00:10]}  dxe4 {[%clk 0:00:03]} 38. Qxe4 {[%clk 0:00:11]}  Be3 {[%clk 0:00:03]} 39. Qe5+ {[%clk 0:00:09]}  Qxe5 {[%clk 0:00:03]} 40. dxe5 {[%clk 0:00:09]}  Bf4 {[%clk 0:00:03]} 41. Be4 {[%clk 0:00:09]}  g5 {[%clk 0:00:03]} 42. Bg6 {[%clk 0:00:10]}  g4 {[%clk 0:00:02]} 43. Kg2 {[%clk 0:00:06]}  gxh3+ {[%clk 0:00:02]} 44. Kxh3 {[%clk 0:00:07]}  Bxe5 {[%clk 0:00:02]} 45. Bxh5 {[%clk 0:00:07]}  Kd6 {[%clk 0:00:03]} 46. Bg4 {[%clk 0:00:08]}  Bf4 {[%clk 0:00:03]} 47. Kg2 {[%clk 0:00:08]}  Bc1 {[%clk 0:00:04]} 48. b3 {[%clk 0:00:07]}  Bb2 {[%clk 0:00:04]} 49. c4 {[%clk 0:00:08]}  e5 {[%clk 0:00:05]} 50. Bd1 {[%clk 0:00:09]}  Kc5 {[%clk 0:00:05]} 51. Kf3 {[%clk 0:00:10]}  Kd4 {[%clk 0:00:06]} 52. Ke2 {[%clk 0:00:10]}  Kc3 {[%clk 0:00:06]} 53. Ke1 {[%clk 0:00:08]}  a6 {[%clk 0:00:06]} 54. Ke2 {[%clk 0:00:09]}  b6 {[%clk 0:00:07]} 55. Ke1 {[%clk 0:00:10]}  Kd3 {[%clk 0:00:07]} 56. Kf2 {[%clk 0:00:10]}  Bd4+ {[%clk 0:00:07]} 57. Ke1 {[%clk 0:00:10]}  e4 {[%clk 0:00:07]} 58. Be2+ {[%clk 0:00:10]}  Kc2 {[%clk 0:00:07]} 59. Bd1+ {[%clk 0:00:11]}  Kc3 {[%clk 0:00:08]} 60. Ke2 {[%clk 0:00:11]}  a5 {[%clk 0:00:04]} 61. Ke1 {[%clk 0:00:11]}  Kd3 {[%clk 0:00:05]} 62. Be2+ {[%clk 0:00:10]}  Ke3 {[%clk 0:00:04]} 63. Bd1 {[%clk 0:00:11]}  Bc3+ {[%clk 0:00:04]} 64. Kf1 {[%clk 0:00:10]}  Kd2 {[%clk 0:00:05]} 65. Be2 {[%clk 0:00:10]}  Bd4 {[%clk 0:00:05]} 66. c5 {[%clk 0:00:09]}  Bxc5 {[%clk 0:00:05]} 67. Bc4 {[%clk 0:00:10]}  e3 {[%clk 0:00:04]} 68. Ba6 {[%clk 0:00:09]}  Kc3 {[%clk 0:00:04]} 69. Bc4 {[%clk 0:00:09]}  b5 {[%clk 0:00:03]} 70. axb5 {[%clk 0:00:09]}  cxb5 {[%clk 0:00:04]} 71. Bxb5 {[%clk 0:00:09]}  Kxb3 {[%clk 0:00:04]} 72. Ke2 {[%clk 0:00:09]}  a4 {[%clk 0:00:04]} 73. Bc6 {[%clk 0:00:08]}  a3 {[%clk 0:00:04]} 74. Bd5+ {[%clk 0:00:09]}  Kb2 {[%clk 0:00:04]} 75. Kd3 {[%clk 0:00:04]}  a2 {[%clk 0:00:04]} 0-1

[Event "November 21 Late 2023"]
[Site "https://www.chess.com"]
[Date "2023.11.21"]
[Round "6"]
[White "Urbina Perez, Juan Antonio"]
[Black "Garrido, Denis"]
[Result "0-1"]
[Board "100"]
[TimeControl "180+1"]
[WhiteFideId "2217368"]
[BlackFideId "601217"]
[WhiteElo "2185"]
[BlackElo "2369"]
[WhiteTeam "ESP"]
[BlackTeam "FRA"]
[WhiteClock "0:00:14"]
[BlackClock "0:00:22"]

1. d4 {[%clk 0:02:57]}  d5 {[%clk 0:02:59]} 2. Nf3 {[%clk 0:02:56]}  Nf6 {[%clk 0:02:59]} 3. c4 {[%clk 0:02:56]}  c6 {[%clk 0:02:59]} 4. Nbd2 {[%clk 0:02:55]}  Bf5 {[%clk 0:02:58]} 5. Qb3 {[%clk 0:02:55]}  Qb6 {[%clk 0:02:57]} 6. Qxb6 {[%clk 0:02:55]}  axb6 {[%clk 0:02:57]} 7. cxd5 {[%clk 0:02:56]}  cxd5 {[%clk 0:02:56]} 8. e3 {[%clk 0:02:56]}  Nc6 {[%clk 0:02:50]} 9. Bb5 {[%clk 0:02:54]}  Bd7 {[%clk 0:02:49]} 10. O-O {[%clk 0:02:53]}  e6 {[%clk 0:02:49]} 11. a3 {[%clk 0:02:48]}  Bd6 {[%clk 0:02:49]} 12. Nb3 {[%clk 0:02:44]}  Na5 {[%clk 0:02:41]} 13. Bxd7+ {[%clk 0:02:31]}  Nxd7 {[%clk 0:02:42]} 14. Nxa5 {[%clk 0:02:31]}  bxa5 {[%clk 0:02:42]} 15. Bd2 {[%clk 0:02:32]}  Ke7 {[%clk 0:02:40]} 16. Rfc1 {[%clk 0:02:31]}  a4 {[%clk 0:02:31]} 17. Kf1 {[%clk 0:02:30]}  Rhc8 {[%clk 0:02:29]} 18. Ne1 {[%clk 0:02:29]}  Nb6 {[%clk 0:02:27]} 19. g3 {[%clk 0:02:19]}  Nc4 {[%clk 0:02:26]} 20. Bc3 {[%clk 0:02:19]}  Ra6 {[%clk 0:02:24]} 21. Nd3 {[%clk 0:02:18]}  Rac6 {[%clk 0:02:21]} 22. Be1 {[%clk 0:02:13]}  f6 {[%clk 0:02:18]} 23. Ke2 {[%clk 0:02:13]}  h5 {[%clk 0:02:17]} 24. Rc3 {[%clk 0:02:01]}  Nxb2 {[%clk 0:02:01]} 25. Rxc6 {[%clk 0:01:55]}  Rxc6 {[%clk 0:02:02]} 26. Nc1 {[%clk 0:01:07]}  b5 {[%clk 0:01:53]} 27. Rb1 {[%clk 0:01:01]}  Rc2+ {[%clk 0:01:50]} 28. Kf1 {[%clk 0:00:58]}  Bxa3 {[%clk 0:01:46]} 29. Ne2 {[%clk 0:00:57]}  Bd6 {[%clk 0:01:29]} 30. Bc3 {[%clk 0:00:56]}  Nc4 {[%clk 0:01:23]} 31. Rxb5 {[%clk 0:00:53]}  Kd7 {[%clk 0:01:06]} 32. Rb7+ {[%clk 0:00:50]}  Bc7 {[%clk 0:01:06]} 33. Ra7 {[%clk 0:00:48]}  a3 {[%clk 0:01:06]} 34. Ke1 {[%clk 0:00:39]}  Kc6 {[%clk 0:01:03]} 35. Kd1 {[%clk 0:00:39]}  Ra2 {[%clk 0:00:59]} 36. Nc1 {[%clk 0:00:37]}  Rxf2 {[%clk 0:00:58]} 37. Bb4 {[%clk 0:00:38]}  Rxh2 {[%clk 0:00:55]} 38. Bxa3 {[%clk 0:00:37]}  Nxe3+ {[%clk 0:00:53]} 39. Ke1 {[%clk 0:00:35]}  Nc2+ {[%clk 0:00:53]} 40. Kd1 {[%clk 0:00:32]}  Nxa3 {[%clk 0:00:52]} 41. Rxa3 {[%clk 0:00:33]}  Bb6 {[%clk 0:00:51]} 42. Ne2 {[%clk 0:00:31]}  g5 {[%clk 0:00:50]} 43. Rf3 {[%clk 0:00:28]}  f5 {[%clk 0:00:50]} 44. Re3 {[%clk 0:00:26]}  Kd7 {[%clk 0:00:50]} 45. Rb3 {[%clk 0:00:26]}  Bc7 {[%clk 0:00:50]} 46. Ke1 {[%clk 0:00:21]}  h4 {[%clk 0:00:49]} 47. gxh4 {[%clk 0:00:21]}  Rxh4 {[%clk 0:00:50]} 48. Kf2 {[%clk 0:00:20]}  g4 {[%clk 0:00:47]} 49. Rd3 {[%clk 0:00:20]}  f4 {[%clk 0:00:47]} 50. Ng1 {[%clk 0:00:18]}  Rh2+ {[%clk 0:00:46]} 51. Kf1 {[%clk 0:00:18]}  f3 {[%clk 0:00:38]} 52. Nxf3 {[%clk 0:00:17]}  gxf3 {[%clk 0:00:38]} 53. Rxf3 {[%clk 0:00:18]}  Rd2 {[%clk 0:00:38]} 54. Rf7+ {[%clk 0:00:17]}  Kc6 {[%clk 0:00:38]} 55. Re7 {[%clk 0:00:18]}  Kd6 {[%clk 0:00:37]} 56. Rg7 {[%clk 0:00:18]}  Rxd4 {[%clk 0:00:37]} 57. Ke2 {[%clk 0:00:19]}  Re4+ {[%clk 0:00:37]} 58. Kd3 {[%clk 0:00:19]}  Bb6 {[%clk 0:00:37]} 59. Rg8 {[%clk 0:00:18]}  Ke5 {[%clk 0:00:37]} 60. Rg5+ {[%clk 0:00:18]}  Kf6 {[%clk 0:00:38]} 61. Rg8 {[%clk 0:00:18]}  Re3+ {[%clk 0:00:38]} 62. Kd2 {[%clk 0:00:18]}  d4 {[%clk 0:00:38]} 63. Rb8 {[%clk 0:00:18]}  Bc7 {[%clk 0:00:38]} 64. Rc8 {[%clk 0:00:18]}  Bd6 {[%clk 0:00:37]} 65. Rd8 {[%clk 0:00:17]}  Bb4+ {[%clk 0:00:36]} 66. Kd1 {[%clk 0:00:16]}  e5 {[%clk 0:00:37]} 67. Rd7 {[%clk 0:00:16]}  Kf5 {[%clk 0:00:37]} 68. Rd8 {[%clk 0:00:16]}  Ke4 {[%clk 0:00:37]} 69. Rd7 {[%clk 0:00:16]}  Kd3 {[%clk 0:00:36]} 70. Kc1 {[%clk 0:00:15]}  Re1+ {[%clk 0:00:35]} 71. Kb2 {[%clk 0:00:15]}  Bc3+ {[%clk 0:00:35]} 72. Kb3 {[%clk 0:00:14]}  e4 {[%clk 0:00:35]} 73. Ra7 {[%clk 0:00:12]}  Rb1+ {[%clk 0:00:33]} 74. Ka2 {[%clk 0:00:11]}  Ra1+ {[%clk 0:00:33]} 75. Kb3 {[%clk 0:00:12]}  e3 {[%clk 0:00:27]} 76. Rxa1 {[%clk 0:00:11]}  Bxa1 {[%clk 0:00:26]} 77. Ka2 {[%clk 0:00:12]}  e2 {[%clk 0:00:26]} 78. Kb3 {[%clk 0:00:13]}  e1=Q {[%clk 0:00:25]} 79. Ka2 {[%clk 0:00:14]}  Qa5+ {[%clk 0:00:23]} 80. Kb3 {[%clk 0:00:13]}  Qc3+ {[%clk 0:00:23]} 81. Ka4 {[%clk 0:00:14]}  Qb2 {[%clk 0:00:22]} 82. Ka5 {[%clk 0:00:13]}  Kc4 {[%clk 0:00:22]} 83. Ka6 {[%clk 0:00:14]}  Kc5 {[%clk 0:00:23]} 84. Ka7 {[%clk 0:00:14]}  Kc6 {[%clk 0:00:22]} 0-1

[Event "November 21 Late 2023"]
[Site "https://www.chess.com"]
[Date "2023.11.21"]
[Round "6"]
[White "Romero Ruscalleda, Josep"]
[Black "Jesseinkman"]
[Result "1/2-1/2"]
[Board "102"]
[TimeControl "180+1"]
[WhiteFideId "2231859"]
[WhiteElo "2183"]
[BlackElo "2483"]
[WhiteTeam "ESP"]
[WhiteClock "0:00:07"]
[BlackClock "0:00:06"]

1. e4 {[%clk 0:03:00]}  e5 {[%clk 0:03:00]} 2. Nf3 {[%clk 0:03:00]}  Nc6 {[%clk 0:03:00]} 3. Bc4 {[%clk 0:03:00]}  Nf6 {[%clk 0:03:00]} 4. d4 {[%clk 0:03:00]}  exd4 {[%clk 0:02:59]} 5. e5 {[%clk 0:03:00]}  d5 {[%clk 0:02:59]} 6. Bb5 {[%clk 0:03:00]}  Ne4 {[%clk 0:03:00]} 7. Nxd4 {[%clk 0:03:00]}  Bd7 {[%clk 0:03:00]} 8. Bxc6 {[%clk 0:02:59]}  bxc6 {[%clk 0:03:00]} 9. O-O {[%clk 0:02:58]}  Bc5 {[%clk 0:02:54]} 10. Be3 {[%clk 0:02:58]}  Bb6 {[%clk 0:02:53]} 11. Nd2 {[%clk 0:02:50]}  Nxd2 {[%clk 0:02:52]} 12. Qxd2 {[%clk 0:02:50]}  c5 {[%clk 0:02:53]} 13. Nf3 {[%clk 0:02:49]}  d4 {[%clk 0:02:52]} 14. Bg5 {[%clk 0:02:49]}  Qc8 {[%clk 0:02:50]} 15. Rfe1 {[%clk 0:02:47]}  h6 {[%clk 0:02:45]} 16. Bh4 {[%clk 0:02:44]}  Be6 {[%clk 0:02:39]} 17. a4 {[%clk 0:02:39]}  a5 {[%clk 0:02:35]} 18. c3 {[%clk 0:02:37]}  O-O {[%clk 0:02:28]} 19. Qf4 {[%clk 0:02:23]}  d3 {[%clk 0:02:22]} 20. c4 {[%clk 0:02:14]}  Bf5 {[%clk 0:01:59]} 21. Re3 {[%clk 0:01:57]}  Bh7 {[%clk 0:01:46]} 22. Nd2 {[%clk 0:01:38]}  Qf5 {[%clk 0:01:31]} 23. Qxf5 {[%clk 0:01:10]}  Bxf5 {[%clk 0:01:32]} 24. f4 {[%clk 0:01:02]}  Rab8 {[%clk 0:01:21]} 25. h3 {[%clk 0:00:58]}  Ba7 {[%clk 0:01:18]} 26. b3 {[%clk 0:00:58]}  h5 {[%clk 0:01:13]} 27. Kf2 {[%clk 0:00:54]}  f6 {[%clk 0:01:10]} 28. exf6 {[%clk 0:00:47]}  gxf6 {[%clk 0:01:11]} 29. Re7 {[%clk 0:00:44]}  Rf7 {[%clk 0:01:09]} 30. Rae1 {[%clk 0:00:44]}  Rbf8 {[%clk 0:01:00]} 31. Kf3 {[%clk 0:00:40]}  Bb8 {[%clk 0:00:50]} 32. g4 {[%clk 0:00:38]}  hxg4+ {[%clk 0:00:51]} 33. hxg4 {[%clk 0:00:38]}  Bc8 {[%clk 0:00:51]} 34. Rxf7 {[%clk 0:00:26]}  Kxf7 {[%clk 0:00:52]} 35. Re3 {[%clk 0:00:23]}  Bb7+ {[%clk 0:00:44]} 36. Kf2 {[%clk 0:00:21]}  Rd8 {[%clk 0:00:32]} 37. g5 {[%clk 0:00:19]}  Rd4 {[%clk 0:00:31]} 38. Bg3 {[%clk 0:00:18]}  f5 {[%clk 0:00:28]} 39. Re5 {[%clk 0:00:16]}  c6 {[%clk 0:00:18]} 40. Rxf5+ {[%clk 0:00:15]}  Kg6 {[%clk 0:00:18]} 41. Rf6+ {[%clk 0:00:15]}  Kh5 {[%clk 0:00:19]} 42. Rf7 {[%clk 0:00:15]}  Bc8 {[%clk 0:00:18]} 43. Rh7+ {[%clk 0:00:14]}  Kg4 {[%clk 0:00:17]} 44. g6 {[%clk 0:00:14]}  Bxf4 {[%clk 0:00:16]} 45. Bxf4 {[%clk 0:00:12]}  Rxf4+ {[%clk 0:00:17]} 46. Ke3 {[%clk 0:00:13]}  Rf8 {[%clk 0:00:06]} 47. Rf7 {[%clk 0:00:12]}  Rg8 {[%clk 0:00:04]} 48. g7 {[%clk 0:00:13]}  Be6 {[%clk 0:00:04]} 49. Re7 {[%clk 0:00:13]}  Kf5 {[%clk 0:00:04]} 50. Ne4 {[%clk 0:00:12]}  d2 {[%clk 0:00:03]} 51. Nxd2 {[%clk 0:00:12]}  Kf6 {[%clk 0:00:03]} 52. Rc7 {[%clk 0:00:12]}  Rxg7 {[%clk 0:00:02]} 53. Rxg7 {[%clk 0:00:12]}  Kxg7 {[%clk 0:00:03]} 54. Ne4 {[%clk 0:00:12]}  Bc8 {[%clk 0:00:02]} 55. Nxc5 {[%clk 0:00:12]}  Kf6 {[%clk 0:00:03]} 56. Kd4 {[%clk 0:00:12]}  Ke7 {[%clk 0:00:03]} 57. Ne4 {[%clk 0:00:11]}  Kd7 {[%clk 0:00:02]} 58. Nc3 {[%clk 0:00:11]}  Kc7 {[%clk 0:00:02]} 59. c5 {[%clk 0:00:11]}  Bh3 {[%clk 0:00:01]} 60. Ne4 {[%clk 0:00:11]}  Be6 {[%clk 0:00:01]} 61. Kc3 {[%clk 0:00:11]}  Bd5 {[%clk 0:00:02]} 62. Nd2 {[%clk 0:00:11]}  Kb7 {[%clk 0:00:01]} 63. Nc4 {[%clk 0:00:11]}  Ka6 {[%clk 0:00:02]} 64. Nb6 {[%clk 0:00:11]}  Bf7 {[%clk 0:00:02]} 65. Nd7 {[%clk 0:00:11]}  Be6 {[%clk 0:00:01]} 66. Ne5 {[%clk 0:00:11]}  Kb7 {[%clk 0:00:02]} 67. b4 {[%clk 0:00:12]}  axb4+ {[%clk 0:00:02]} 68. Kxb4 {[%clk 0:00:12]}  Bf5 {[%clk 0:00:03]} 69. a5 {[%clk 0:00:11]}  Be4 {[%clk 0:00:02]} 70. Nc4 {[%clk 0:00:11]}  Ka6 {[%clk 0:00:02]} 71. Nd6 {[%clk 0:00:11]}  Bd5 {[%clk 0:00:02]} 72. Nc8 {[%clk 0:00:10]}  Be6 {[%clk 0:00:02]} 73. Nb6 {[%clk 0:00:10]}  Bf5 {[%clk 0:00:03]} 74. Nc4 {[%clk 0:00:09]}  Be6 {[%clk 0:00:04]} 75. Nd2 {[%clk 0:00:09]}  Bd5 {[%clk 0:00:04]} 76. Ka4 {[%clk 0:00:08]}  Be6 {[%clk 0:00:03]} 77. Nb1 {[%clk 0:00:08]}  Bf5 {[%clk 0:00:04]} 78. Na3 {[%clk 0:00:08]}  Be6 {[%clk 0:00:04]} 79. Nc2 {[%clk 0:00:08]}  Bf5 {[%clk 0:00:03]} 80. Nb4+ {[%clk 0:00:08]}  Kb7 {[%clk 0:00:03]} 81. a6+ {[%clk 0:00:08]}  Ka7 {[%clk 0:00:04]} 82. Ka5 {[%clk 0:00:08]}  Bd7 {[%clk 0:00:04]} 83. Nd3 {[%clk 0:00:08]}  Bc8 {[%clk 0:00:04]} 84. Ne5 {[%clk 0:00:08]}  Bxa6 {[%clk 0:00:04]} 85. Nxc6+ {[%clk 0:00:08]}  Kb7 {[%clk 0:00:05]} 86. Nb4 {[%clk 0:00:08]}  Bc4 {[%clk 0:00:05]} 87. c6+ {[%clk 0:00:07]}  Kc7 {[%clk 0:00:06]} 88. Ka4 {[%clk 0:00:07]}  Bd5 {[%clk 0:00:05]} 89. Kb5 {[%clk 0:00:07]}  Bxc6+ {[%clk 0:00:06]} 1/2-1/2